lending/lending_fUSD_20250706
["ID","MTS","AMOUNT","RATE_DAILY","PERIOD"]
[369938905,1751789447409,-672.72,0.00019178,2]
[369938907,1751789447418,-460.0,0.00019178,2]
[369938909,1751789447427,-460.0,0.00019178,2]
[369938911,1751789447436,-460.0,0.00019178,2]
[369938913,1751789447445,-460.0,0.00019178,2]
[369938915,1751789447455,-241.38334453,0.00019178,2]
[369938918,1751789447471,-218.61665547,0.00019178,2]
[369938920,1751789447480,-460.0,0.00019178,2]
[369938922,1751789447489,-54.64544043,0.00019178,2]
[369940509,1751789500105,298.08,0.00013699,2]
[369940518,1751789567999,295.75,0.00013801,2]
[369940657,1751790545351,290.85,0.00013699,2]
[369940692,1751790631406,-166.69245729,0.00015647,2]
[369940694,1751790631415,-195.47293734,0.00015648,2]
[369940696,1751790631424,-900.0,0.00016164,2]
[369940697,1751790631434,-1000.0,0.00016164,2]
[369940698,1751790631443,-500.0,0.00016164,2]
[369940699,1751790631452,-1200.0,0.00016502,2]
[369940700,1751790631462,-532.0,0.00016871,2]
[369940701,1751790631471,-300.0,0.00016899,2]
[369940702,1751790631481,-1332.48177765,0.000169,2]
[369940703,1751790631490,-300.0,0.00017211,2]
[369940704,1751790631499,-900.0,0.00017534,2]
[369940705,1751790631509,-1000.0,0.00017534,2]
[369940706,1751790631519,-1332.48177759,0.0001759,2]
[369940707,1751790631528,-1618.52,0.00017639,2]
[369940708,1751790631538,-200.0,0.00017817,7]
[369940709,1751790631547,-1852.42,0.00017819,2]
[369940710,1751790631556,-1000.0,0.00017824,2]
[369940711,1751790631569,-183.19,0.00017838,2]
[369940712,1751790631578,-156.81,0.00017934,2]
[369940713,1751790631587,-1870.35,0.00017956,2]
[369940714,1751790631596,-551.7,0.00017956,2]
[369940715,1751790631605,-4387.73213284,0.00018,2]
[369940716,1751790631615,-580.0,0.000181,2]
[369940717,1751790631625,-91.65822318,0.00018163,2]
[369940718,1751790631637,-462.76177682,0.00018163,2]
[369940719,1751790631646,-166.71,0.00018182,2]
[369940720,1751790631655,-784.01663767,0.00018279,2]
[369940721,1751790631666,-548.46513992,0.00018279,2]
[369940722,1751790631676,-207.4,0.000183,2]
[369940723,1751790631685,-250.0,0.00018417,2]
[369940724,1751790631695,-568.0,0.0001859,2]
[369940725,1751790631705,-1000.0,0.0001863,2]
[369940726,1751790631715,-419.84044471,0.0001863,2]
[369940727,1751790631757,-17.23992571,0.0001863,2]
[369940728,1751790631776,-364.73919525,0.0001863,2]
[369940729,1751790631788,-98.18043433,0.0001863,2]
[369940730,1751790631797,-300.0,0.000187,6]
[369940731,1751790631806,-550.0,0.000187,2]
[369940732,1751790631816,-467.29584923,0.000188,6]
[369940733,1751790631877,-132.70415077,0.000188,6]
[369940734,1751790631886,-1000.0,0.000189,6]
[369940735,1751790631896,-500.0,0.00018904,2]
[369940736,1751790631905,-1054.72445706,0.00018969,2]
[369940737,1751790631931,-277.75732053,0.00018969,2]
[369940738,1751790631941,-137.75617947,0.00018976,2]
[369940742,1751790632000,-582.73782053,0.00018976,2]
[369940743,1751790632010,-887.0,0.00018976,2]
[369940745,1751790632019,-545.32590123,0.00018976,2]
[369940747,1751790632030,-936.79460021,0.00018976,2]
[369940749,1751790632049,-671.3542708,0.00018976,2]
[369940751,1751790632060,-4999.52522776,0.00018976,2]
[369940753,1751790632069,-413.78252839,0.00018976,2]
[369940754,1751790632081,-1252.4517051,0.00018976,2]
[369940755,1751790632092,-1165.64287402,0.00018976,2]
[369940756,1751790632104,-1276.12289249,0.00018976,2]
[369940757,1751790632113,-220.12378315,0.00019008,2]
[369940758,1751790632179,-230.28912092,0.00019008,2]
[369940759,1751790632189,-156.487346,0.00019059,2]
[369940760,1751790632198,-557.0,0.0001907,2]
[369940761,1751790632208,-113.9563468,0.00019078,2]
[369940781,1751790637463,-48.01902216,0.00019078,2]
[369940782,1751790637473,-154.2194337,0.00019078,2]
[369940784,1751790637483,-2554.23095673,0.00019078,2]
[369940786,1751790637493,-500.0,0.00019078,2]
[369940788,1751790637502,-948.36030472,0.00019078,2]
[369940790,1751790637522,-51.63969528,0.00019078,2]
[369940792,1751790637531,-3733.24067556,0.00019078,2]
[369940793,1751790637678,-1266.75932444,0.00019078,2]
[369940794,1751790637688,-154.21943369,0.00019147,2]
[369940795,1751790637697,-194.0,0.00019147,2]
[369940796,1751790637707,-172.224,0.00019149,2]
[369940797,1751790637716,-1675.378,0.00019149,2]
[369940798,1751790637725,-4540.11958026,0.0001915,2]
[369940799,1751790637735,-4540.06,0.00019152,2]
[369940801,1751790637745,-473.05,0.00019168,2]
[369940802,1751790637755,-2554.23095671,0.00019169,2]
[369940803,1751790637764,-500.0,0.00019173,2]
[369940804,1751790637773,-500.0,0.00019173,2]
[369940805,1751790637782,-500.0,0.00019173,2]
[369940807,1751790637791,-500.0,0.00019173,2]
[369940809,1751790637800,-500.0,0.00019173,2]
[369940811,1751790637809,-238.05498345,0.00019173,2]
[369940813,1751790637821,-264.33782213,0.00019173,2]
[369940815,1751790637830,-500.0,0.00019173,2]
[369940817,1751790637839,-500.0,0.00019173,2]
[369940819,1751790637848,-500.0,0.00019173,2]
[369940821,1751790637858,-404.47928723,0.00019173,2]
[369940823,1751790637867,-500.0,0.00019173,2]
[369940824,1751790637876,-270.114,0.00019177,2]
[369940826,1751790637886,-2527.9,0.00019177,2]
[369940828,1751790637895,-72.66030738,0.00019177,2]
[369940840,1751790638000,-238.13108215,0.00019177,2]
[369940842,1751790638010,-503.45394082,0.00019177,2]
[369940844,1751790638019,-928.19394016,0.00019178,2]
[369940846,1751790638028,-39129.82111941,0.00019178,2]
[369940961,1751790639697,-1933.90415336,0.00019178,2]
[369940962,1751790639709,-6875.76270839,0.00019178,2]
[369940963,1751790639721,-1259.06168739,0.00019178,2]
[369940964,1751790639732,-518.08735631,0.00019178,2]
[369940965,1751790639744,-2944.93514439,0.00019178,2]
[369940966,1751790639793,-2700.69855921,0.00019178,2]
[369940967,1751790639808,-7007.23009775,0.00019178,2]
[369940968,1751790639853,-37221.82480557,0.00019178,2]
[369940969,1751790639870,-2559.12482216,0.00019178,2]
[369940970,1751790639960,-1405.381095,0.00019178,2]
[369940971,1751790639972,-1280.94966465,0.00019178,2]
[369941046,1751790640802,-1564.59637218,0.00019178,2]
[369941092,1751790642554,-2924.53879719,0.00019178,2]
[369941093,1751790642653,-5042.38090032,0.00019178,2]
[369941094,1751790642662,-460.0,0.00019178,2]
[369941095,1751790642672,-460.0,0.00019178,2]
[369941096,1751790642681,-460.0,0.00019178,2]
[369941097,1751790642691,-460.0,0.00019178,2]
[369941098,1751790642700,-460.0,0.00019178,2]
[369941099,1751790642710,-460.0,0.00019178,2]
[369941101,1751790642719,-460.0,0.00019178,2]
[369941102,1751790642731,-460.0,0.00019178,2]
[369941104,1751790642740,-460.0,0.00019178,2]
[369941105,1751790642749,-460.0,0.00019178,2]
[369941106,1751790642759,-1000.0,0.00019178,2]
[369941108,1751790642767,-465.20472952,0.00019178,2]
[369941110,1751790642777,-461.48154539,0.00019178,2]
[369941112,1751790642785,-460.0,0.00019178,2]
[369941114,1751790642793,-460.0,0.00019178,2]
[369941116,1751790642802,-460.0,0.00019178,2]
[369941118,1751790642811,-460.0,0.00019178,2]
[369941119,1751790642820,-460.0,0.00019178,2]
[369941120,1751790642829,-207.04912381,0.00019178,2]
[369941121,1751790642838,-460.0,0.00019178,2]
[369941122,1751790642847,-520.0,0.00019178,2]
[369941123,1751790642856,-507.71474788,0.00019178,2]
[369941124,1751790642866,-460.0,0.00019178,2]
[369941125,1751790642875,-460.0,0.00019178,2]
[369941126,1751790642884,-460.0,0.00019178,2]
[369941127,1751790642893,-69.3755941,0.00019178,2]
[369941128,1751790642907,-390.6244059,0.00019178,2]
[369941129,1751790642917,-260.04343797,0.00019178,2]
[369941247,1751790645501,-199.95656203,0.00019178,2]
[369941248,1751790645511,-460.0,0.00019178,2]
[369941249,1751790645521,-460.0,0.00019178,2]
[369941250,1751790645530,-460.0,0.00019178,2]
[369941251,1751790645541,-460.0,0.00019178,2]
[369941252,1751790645550,-460.0,0.00019178,2]
[369941253,1751790645559,-460.0,0.00019178,2]
[369941254,1751790645568,-460.0,0.00019178,2]
[369941255,1751790645578,-460.0,0.00019178,2]
[369941256,1751790645587,-497.22757609,0.00019178,2]
[369941257,1751790645597,-466.67863165,0.00019178,2]
[369941258,1751790645607,-460.0,0.00019178,2]
[369941259,1751790645616,-151.0,0.00019178,2]
[369941260,1751790645626,-520.0,0.00019178,2]
[369941261,1751790645635,-460.0,0.00019178,2]
[369941262,1751790645644,-460.0,0.00019178,2]
[369941263,1751790645653,-460.0,0.00019178,2]
[369941264,1751790645663,-460.0,0.00019178,2]
[369941265,1751790645673,-460.0,0.00019178,2]
[369941266,1751790645683,-460.0,0.00019178,2]
[369941267,1751790645692,-460.0,0.00019178,2]
[369941268,1751790645702,-460.0,0.00019178,2]
[369941269,1751790645712,-460.0,0.00019178,2]
[369941270,1751790645722,-460.0,0.00019178,2]
[369941271,1751790645731,-460.0,0.00019178,2]
[369941272,1751790645740,-200.0,0.00019178,2]
[369941273,1751790645751,-460.0,0.00019178,2]
[369941274,1751790645760,-460.0,0.00019178,2]
[369941275,1751790645769,-460.0,0.00019178,2]
[369941276,1751790645778,-460.0,0.00019178,2]
[369941277,1751790645789,-460.0,0.00019178,2]
[369941278,1751790645798,-460.0,0.00019178,2]
[369941279,1751790645809,-392.969957,0.00019178,2]
[369941280,1751790645819,-460.0,0.00019178,2]
[369941281,1751790645828,-460.0,0.00019178,2]
[369941282,1751790645838,-460.0,0.00019178,2]
[369941283,1751790645847,-460.0,0.00019178,2]
[369941284,1751790645857,-460.0,0.00019178,2]
[369941285,1751790645866,-460.0,0.00019178,2]
[369941287,1751790645878,-318.64074138,0.00019178,2]
[369941293,1751790646003,-204.83562565,0.00019078,2]
[369941295,1751790646013,-141.35925862,0.00019178,2]
[369941297,1751790646021,-460.0,0.00019178,2]
[369941299,1751790646030,-460.0,0.00019178,2]
[369941301,1751790646039,-460.0,0.00019178,2]
[369941303,1751790646048,-540.12993979,0.00019178,2]
[369941305,1751790646057,-460.0,0.00019178,2]
[369941307,1751790646066,-535.39706814,0.00019178,2]
[369941309,1751790646075,-460.0,0.00019178,2]
[369941311,1751790646083,-460.0,0.00019178,2]
[369941313,1751790646092,-460.0,0.00019178,2]
[369941315,1751790646101,-460.0,0.00019178,2]
[369941317,1751790646111,-460.0,0.00019178,2]
[369941319,1751790646119,-8.73264748,0.00019178,2]
[369941325,1751790646166,-153.98694296,0.00019178,2]
[369941327,1751790646174,-460.0,0.00019178,2]
[369941329,1751790646183,-460.0,0.00019178,2]
[369941331,1751790646192,-492.86011015,0.00019178,2]
[369941333,1751790646201,-460.0,0.00019178,2]
[369941335,1751790646211,-460.0,0.00019178,2]
[369941337,1751790646220,-460.0,0.00019178,2]
[369941339,1751790646229,-523.32,0.00019178,2]
[369941341,1751790646238,-460.0,0.00019178,2]
[369941343,1751790646247,-460.0,0.00019178,2]
[369941345,1751790646256,-460.0,0.00019178,2]
[369941347,1751790646265,-460.0,0.00019178,2]
[369941348,1751790646274,-460.0,0.00019178,2]
[369941350,1751790646284,-460.0,0.00019178,2]
[369941352,1751790646294,-168.64221962,0.00019178,2]
[369941354,1751790646306,-460.0,0.00019178,2]
[369941356,1751790646315,-295.51943646,0.00019178,2]
[369941358,1751790646324,-460.0,0.00019178,2]
[369941360,1751790646334,-250.86167087,0.00019178,2]
[369941421,1751791226541,-200.0,0.00020894,30]
[369941422,1751791226566,-2000.0,0.000209,30]
[369941537,1751791813269,291.67,0.00013699,2]
[369941547,1751791831656,-150.13442171,0.00014002,2]
[369941548,1751791831667,-269.26536572,0.00015384,2]
[369941549,1751791831676,-250.0,0.00015402,2]
[369941550,1751791831686,-1200.0,0.00016348,2]
[369941551,1751791831697,-305.83,0.00016349,2]
[369941552,1751791831707,-302.05,0.00016349,2]
[369941553,1751791831717,-301.28,0.00016349,2]
[369941554,1751791831726,-301.59,0.00016349,2]
[369941555,1751791831735,-301.04,0.00016349,2]
[369941556,1751791831745,-300.4,0.00016349,2]
[369941557,1751791831754,-302.17,0.00016349,2]
[369941558,1751791831764,-303.94,0.00016349,2]
[369941559,1751791831774,-304.29,0.00016349,2]
[369941560,1751791831783,-303.12,0.00016349,2]
[369941561,1751791831792,-306.0,0.0001635,2]
[369941562,1751791831801,-304.35,0.0001635,2]
[369941563,1751791831811,-304.47,0.0001635,2]
[369941564,1751791831820,-304.82,0.00016354,2]
[369941565,1751791831829,-303.97,0.00016354,2]
[369941566,1751791831838,-303.07,0.00016354,2]
[369941567,1751791831847,-300.76,0.00016377,2]
[369941568,1751791831857,-300.42,0.00016377,2]
[369941569,1751791831867,-304.61,0.00016521,2]
[369941570,1751791831876,-305.7,0.00016521,2]
[369941571,1751791831886,-409.40052278,0.00017064,2]
[369941572,1751791831910,-390.59947722,0.00017064,2]
[369941573,1751791831919,-700.0,0.00017064,2]
[369941574,1751791831929,-500.0,0.00017064,2]
[369941575,1751791831938,-40.60052278,0.00017064,2]
[369941576,1751791831949,-260.19947722,0.00017064,2]
[369941577,1751791831958,-301.52,0.00017064,2]
[369941578,1751791831967,-1302.77,0.00017267,2]
[369941579,1751791831976,-190.46,0.00017302,2]
[369941580,1751791831986,-190.46,0.00017311,2]
[369941581,1751791831995,-190.46,0.00017321,2]
[369941582,1751791832003,-190.46,0.0001733,2]
[369941583,1751791832013,-190.46,0.00017339,2]
[369941584,1751791832022,-667.42,0.00017341,2]
[369941585,1751791832030,-190.46,0.00017348,2]
[369941586,1751791832040,-190.46,0.00017357,2]
[369941587,1751791832050,-190.46,0.00017366,2]
[369941588,1751791832059,-190.46,0.00017375,2]
[369941589,1751791832068,-300.0,0.00017384,2]
[369941590,1751791832077,-190.46,0.00017384,2]
[369941591,1751791832087,-190.46,0.00017393,2]
[369941592,1751791832096,-190.46,0.00017402,2]
[369941594,1751791832106,-190.46,0.00017412,2]
[369941596,1751791832115,-190.46,0.00017421,2]
[369941598,1751791832124,-190.46,0.0001743,2]
[369941599,1751791832133,-190.46,0.00017439,2]
[369941601,1751791832143,-250.0,0.00017447,2]
[369941603,1751791832152,-190.46,0.00017448,2]
[369941605,1751791832161,-190.46,0.00017457,2]
[369941606,1751791832172,-190.46,0.00017466,2]
[369941607,1751791832181,-190.46,0.00017475,2]
[369941608,1751791832192,-167.66,0.00017538,2]
[369941609,1751791832202,-1392.08753586,0.00017552,2]
[369941610,1751791832212,-211.0,0.0001759,2]
[369941611,1751791832223,-188.01,0.00017665,2]
[369941612,1751791832232,-424.62,0.00017669,2]
[369941613,1751791832242,-1000.0,0.00017672,2]
[369941614,1751791832252,-35955.73297905,0.0001769,2]
[369941615,1751791832262,-152.0,0.00017736,3]
[369941616,1751791832271,-211.0,0.0001778,2]
[369941617,1751791832280,-300.0,0.0001778,2]
[369941618,1751791832290,-23900.0,0.000178,2]
[369941619,1751791832300,-203.0,0.00017817,2]
[369941620,1751791832310,-1051.12986245,0.00017866,2]
[369941621,1751791832319,-950.23,0.00017867,2]
[369941622,1751791832328,-1184.29630352,0.000179,2]
[369941623,1751791832338,-150.0,0.00017952,2]
[369941624,1751791832348,-1680.0,0.00017957,2]
[369941625,1751791832357,-211.0,0.0001796,2]
[369941626,1751791832366,-513.0,0.000181,2]
[369941627,1751791832378,-211.0,0.0001815,2]
[369941628,1751791832387,-800.0,0.0001816,2]
[369941629,1751791832397,-700.0,0.0001816,2]
[369941630,1751791832407,-642.0,0.00018193,2]
[369941631,1751791832416,-171.94,0.00018206,2]
[369941632,1751791832426,-200.0,0.00018207,2]
[369941633,1751791832435,-200.0,0.00018252,2]
[369941634,1751791832444,-300.0,0.000183,2]
[369941635,1751791832454,-500.0,0.000183,2]
[369941636,1751791832463,-207.4,0.000183,2]
[369941637,1751791832474,-239.84119403,0.000183,2]
[369941638,1751791832485,-500.0,0.000183,2]
[369941639,1751791832494,-500.0,0.000183,2]
[369941640,1751791832503,-500.0,0.000183,2]
[369941641,1751791832513,-2000.0,0.000183,2]
[369941642,1751791832524,-500.0,0.000183,2]
[369941643,1751791832534,-1741.8479867,0.000183,2]
[369941644,1751791832544,-500.0,0.000183,2]
[369941645,1751791832554,-258.62242538,0.000183,2]
[369941646,1751791832563,-247.43723805,0.000183,2]
[369941647,1751791832573,-6912.642,0.000183,2]
[369941648,1751791832582,-300.0,0.000183,2]
[369941649,1751791832591,-300.0,0.000183,2]
[369941650,1751791832602,-300.0,0.000183,2]
[369941651,1751791832612,-300.0,0.000183,2]
[369941652,1751791832621,-300.0,0.000183,2]
[369941653,1751791832630,-300.0,0.000183,2]
[369941654,1751791832640,-300.0,0.000183,2]
[369941655,1751791832649,-300.0,0.000183,2]
[369941656,1751791832659,-300.0,0.000183,2]
[369941657,1751791832668,-300.0,0.000183,2]
[369941658,1751791832679,-300.0,0.000183,2]
[369941659,1751791832689,-500.0,0.000183,2]
[369941660,1751791832699,-500.0,0.000183,2]
[369941661,1751791832709,-500.0,0.000183,2]
[369941662,1751791832719,-500.0,0.000183,2]
[369941663,1751791832728,-500.0,0.000183,2]
[369941664,1751791832737,-500.0,0.000183,2]
[369941665,1751791832747,-500.0,0.000183,2]
[369941666,1751791832757,-500.0,0.000183,2]
[369941667,1751791832766,-390.75172873,0.000183,2]
[369941668,1751791832777,-211.0,0.0001833,2]
[369941669,1751791832787,-642.0,0.00018336,2]
[369941670,1751791832798,-7168.409754,0.00018355,2]
[369941671,1751791832808,-7433.6409149,0.0001841,2]
[369941672,1751791832817,-642.0,0.00018422,2]
[369941673,1751791832827,-7708.68562875,0.00018465,2]
[369941674,1751791832836,-456.91,0.00018478,2]
[369941675,1751791832846,-356.22,0.00018478,2]
[369941676,1751791832855,-164.09,0.00018478,2]
[369941677,1751791832866,-155.12587472,0.0001849,2]
[369941678,1751791832876,-993.84252649,0.0001849,2]
[369941679,1751791832885,-250.0,0.00018501,2]
[369941680,1751791832895,-7993.90699701,0.0001852,2]
[369941681,1751791832904,-211.0,0.0001852,2]
[369941682,1751791832914,-1184.29630323,0.00018555,2]
[369941683,1751791832923,-8289.6815559,0.00018575,2]
[369941684,1751791832932,-503.0,0.0001859,2]
[369941685,1751791832942,-155.12587469,0.00018616,2]
[369941686,1751791832951,-8596.39977347,0.0001863,2]
[369941687,1751791832961,-993.84252642,0.00018647,2]
[369941688,1751791832970,-8914.46656509,0.00018685,2]
[369941689,1751791832979,-211.0,0.000187,2]
[369941690,1751791832989,-266.34,0.00018735,2]
[369941691,1751791832998,-539.9067656,0.0001874,2]
[369941692,1751791833007,-155.12587469,0.00018742,2]
[369941693,1751791833017,-1878.0,0.00018743,2]
[369941694,1751791833027,-993.84252642,0.00018803,2]
[369941695,1751791833036,-155.12587469,0.00018869,2]
[369941696,1751791833046,-211.0,0.0001889,2]
[369941697,1751791833058,-2000.0,0.000189,2]
[369941698,1751791833067,-993.84252642,0.0001896,2]
[369941699,1751791833078,-2359.4514,0.00018978,2]
[369941700,1751791833086,-155.12587469,0.00018995,2]
[369941701,1751791833095,-1000.0,0.00019052,2]
[369941702,1751791833105,-1195.2569,0.00019052,2]
[369941703,1751791833114,-211.0,0.0001907,2]
[369941704,1751791833125,-492.0,0.0001907,2]
[369941705,1751791833134,-157.62880985,0.00019078,2]
[369941706,1751791833143,-391.44538672,0.00019078,2]
[369941707,1751791833153,-2488.27561962,0.00019078,2]
[369941708,1751791833162,-177.80353349,0.00019078,2]
[369941709,1751791833172,-458.71645052,0.00019078,2]
[369941710,1751791833181,-500.0,0.00019078,2]
[369941711,1751791833192,-2637.2081,0.00019078,2]
[369941712,1751791833201,-1000.0,0.00019078,2]
[369941713,1751791833210,-3518.05903936,0.00019078,2]
[369941714,1751791833232,-1481.94096064,0.00019078,2]
[369941715,1751791833241,-155.12587469,0.00019121,2]
[369941716,1751791833251,-200.9591,0.00019123,2]
[369941717,1751791833261,-384.58,0.0001914,2]
[369941718,1751791833272,-311.39406468,0.0001915,2]
[369941719,1751791833313,-904.9999995,0.0001915,2]
[369941720,1751791833324,-1152.0,0.0001915,2]
[369941721,1751791833337,-1102.799998,0.0001915,2]
[369941722,1751791833348,-1152.5,0.0001915,2]
[369941723,1751791833360,-1464.64232,0.0001915,2]
[369941724,1751791833376,-353.975,0.0001915,2]
[369941727,1751791837682,-993.84252642,0.00019117,2]
[369941728,1751791837693,-356.26718158,0.0001915,2]
[369941729,1751791837789,-1916.5487131,0.0001915,2]
[369941730,1751791837799,-2560.90799973,0.00019151,2]
[369941731,1751791837808,-12489.85745151,0.0001916,2]
[369941732,1751791837948,-4940.30254849,0.0001916,2]
[369941733,1751791837958,-172.225,0.00019163,2]
[369941734,1751791837967,-426.26023269,0.00019163,2]
[369941735,1751791838008,-914.04176731,0.00019163,2]
[369941736,1751791838018,-384.58,0.00019166,2]
[369941737,1751791838028,-325.23,0.00019166,2]
[369941738,1751791838037,-384.58,0.00019168,2]
[369941739,1751791838048,-384.58,0.00019168,2]
[369941740,1751791838062,-384.58,0.00019168,2]
[369941742,1751791838072,-2488.27561954,0.00019169,2]
[369941744,1751791838081,-500.0,0.00019173,2]
[369941745,1751791838090,-500.66300903,0.00019173,2]
[369941746,1751791838101,-500.0,0.00019173,2]
[369941748,1751791838111,-500.0,0.00019173,2]
[369941749,1751791838120,-501.02749981,0.00019173,2]
[369941751,1751791838130,-843.89432812,0.00019176,2]
[369941753,1751791838139,-464.09697008,0.00019176,2]
[369941754,1751791838148,-21404.36008754,0.00019178,2]
[369941755,1751791838160,-6042.81812401,0.00019178,2]
[369941896,1751791839841,-29736.97043009,0.00019178,2]
[369941898,1751791839851,-776.0,0.00019178,2]
[369941900,1751791839862,-460.0,0.00019178,2]
[369941902,1751791839872,-460.0,0.00019178,2]
[369941904,1751791839881,-460.0,0.00019178,2]
[369941906,1751791839891,-460.0,0.00019178,2]
[369941908,1751791839900,-460.0,0.00019178,2]
[369941910,1751791839909,-460.0,0.00019178,2]
[369941912,1751791839919,-460.0,0.00019178,2]
[369941915,1751791839931,-460.0,0.00019178,2]
[369941916,1751791839940,-460.0,0.00019178,2]
[369941919,1751791839951,-460.0,0.00019178,2]
[369941921,1751791839960,-460.0,0.00019178,2]
[369941923,1751791839971,-460.0,0.00019178,2]
[369941924,1751791839982,-460.0,0.00019178,2]
[369941926,1751791839991,-460.0,0.00019178,2]
[369941927,1751791840001,-460.0,0.00019178,2]
[369941929,1751791840011,-460.0,0.00019178,2]
[369941931,1751791840021,-460.0,0.00019178,2]
[369941933,1751791840032,-461.18865583,0.00019178,2]
[369941935,1751791840042,-460.0,0.00019178,2]
[369941937,1751791840052,-460.0,0.00019178,2]
[369941939,1751791840064,-460.0,0.00019178,2]
[369941941,1751791840074,-460.0,0.00019178,2]
[369941943,1751791840083,-460.0,0.00019178,2]
[369941945,1751791840093,-460.0,0.00019178,2]
[369941947,1751791840103,-1000.0,0.00019178,2]
[369941949,1751791840112,-238.23747548,0.00019178,2]
[369941951,1751791840122,-460.0,0.00019178,2]
[369941953,1751791840136,-151.0,0.00019178,2]
[369941955,1751791840146,-151.0,0.00019178,2]
[369941957,1751791840156,-151.0,0.00019178,2]
[369941959,1751791840166,-151.0,0.00019178,2]
[369941961,1751791840176,-272.58548344,0.00019178,2]
[369941963,1751791840185,-460.0,0.00019178,2]
[369941965,1751791840194,-460.0,0.00019178,2]
[369941967,1751791840204,-460.0,0.00019178,2]
[369941969,1751791840213,-460.0,0.00019178,2]
[369941971,1751791840223,-460.0,0.00019178,2]
[369941973,1751791840232,-460.0,0.00019178,2]
[369941975,1751791840242,-460.0,0.00019178,2]
[369941977,1751791840254,-460.0,0.00019178,2]
[369941979,1751791840264,-460.0,0.00019178,2]
[369941981,1751791840273,-200.0,0.00019178,2]
[369941983,1751791840283,-327.94611127,0.00019178,2]
[369941985,1751791840292,-460.0,0.00019178,2]
[369941987,1751791840301,-460.0,0.00019178,2]
[369941989,1751791840311,-173.044894,0.00019178,2]
[369941991,1751791840320,-173.044894,0.00019178,2]
[369941993,1751791840329,-173.044894,0.00019178,2]
[369941995,1751791840338,-173.044894,0.00019178,2]
[369941997,1751791840348,-460.0,0.00019178,2]
[369941999,1751791840357,-460.0,0.00019178,2]
[369942000,1751791840367,-460.0,0.00019178,2]
[369942002,1751791840376,-460.0,0.00019178,2]
[369942004,1751791840386,-460.0,0.00019178,2]
[369942006,1751791840397,-460.0,0.00019178,2]
[369942008,1751791840406,-314.78515358,0.00019178,2]
[369942010,1751791840416,-460.0,0.00019178,2]
[369942012,1751791840426,-460.0,0.00019178,2]
[369942014,1751791840435,-460.0,0.00019178,2]
[369942016,1751791840444,-460.0,0.00019178,2]
[369942018,1751791840454,-460.0,0.00019178,2]
[369942020,1751791840463,-460.0,0.00019178,2]
[369942022,1751791840472,-460.0,0.00019178,2]
[369942024,1751791840482,-460.0,0.00019178,2]
[369942026,1751791840492,-460.0,0.00019178,2]
[369942028,1751791840502,-460.0,0.00019178,2]
[369942030,1751791840510,-327.50002768,0.00019178,2]
[369942032,1751791840520,-460.0,0.00019178,2]
[369942034,1751791840529,-460.0,0.00019178,2]
[369942036,1751791840539,-460.0,0.00019178,2]
[369942038,1751791840549,-460.0,0.00019178,2]
[369942040,1751791840558,-460.0,0.00019178,2]
[369942042,1751791840568,-460.0,0.00019178,2]
[369942044,1751791840577,-460.0,0.00019178,2]
[369942046,1751791840587,-460.0,0.00019178,2]
[369942048,1751791840597,-591.30908722,0.00019178,2]
[369942050,1751791840606,-460.0,0.00019178,2]